Cogmind - Beta 12 @@@ ROGUE MODE // 2023.03.18 @ 13:26:04 Player: ArabianSandBoa Result: Self-destructed Performance ------------- Evolutions (1) 500 Regions Visited (5) 1000 Robots Destroyed (95) 475 Value Destroyed (2066) 2066 Prototype IDs (46) 920 Alien Tech Used (0) 0 Bonus (-166) -166 TOTAL SCORE: 4795 Bonus ------- High Alert Combat Kills 188 Follower Combat Kills 175 Aligned with FarCom 300 Friendly Fire -829 Cogmind --------- Core Integrity 133/400 Matter 28/300 Energy 310/310 System Corruption 0% Temperature Cool (0) Movement Treading (225) Ox1 Location -9/Exiles Parts ------- > --- POWER (1) -------- Reinforced Fission Core > --- PROPULSION (2) --- Advanced Treads > --- UTILITY (4) ------ Lightpack 2.0 > --- WEAPON (2) ------- Improved Grenade Launcher > --- INVENTORY (40) --- Cooled Ion Engine Cooled Ion Engine Huge Storage Unit High-capacity Matter Pod (0) Medium Armor Plating Shock Absorption System Supersonic Drone Bay (1/1) Firepult Heavy Assault Rifle Heavy Assault Cannon Stasis Trap (100%) Peak State ------------ > --- POWER ------------ Reinforced Fission Core > --- PROPULSION ------- Advanced Treads Advanced Treads > --- UTILITY ---------- Cooling System Lightpack 2.0 > --- WEAPON ----------- Firepult > --- INVENTORY -------- Cooled Ion Engine Advanced Treads High-capacity Matter Pod Shock Absorption System Supersonic Drone Bay Heavy Assault Rifle Heavy Assault Cannon Improved Grenade Launcher [Rating: 67] Favorites ----------- Power Cooled Ion Engine Engine Cooled Ion Engine Power Core Reinforced Fission Core Propulsion Advanced Treads Treads Advanced Treads Leg Aluminum Leg Wheel Compact Wheel Flight Unit Improved Flight Unit Utility Light Armor Plating Device Cooling System Storage Huge Storage Unit Processor Targeting Computer Hackware Hacking Suite Protection Light Armor Plating Weapon Improved Light Cannon Energy Gun Medium Laser Energy Cannon Firepult Ballistic Gun Heavy Assault Rifle Ballistic Cannon Improved Light Cannon Launcher Improved Grenade Launcher Special Melee Weapon Datajack Build | -11 -10 -10 -9 -9 -9 ------- Run | Jun Mat Min Mat Min Exi Slots Evolved 2 | . . . 2 . . Power . | . . . . . . Propulsion . | . . . . . . Utility 2 | . . . 2 . . Weapon . | . . . . . . Parts Attached 77 | 2 17 3 33 3 19 Power 8 | . 1 1 3 . 3 Engine 6 | . 1 1 3 . 1 Core 2 | . . . . . 2 Reactor . | . . . . . . Propulsion 24 | 2 9 1 10 . 2 Treads 12 | 2 4 . 4 . 2 Leg . | . . . . . . Wheel 11 | . 5 1 5 . . Hover . | . . . . . . Flight 1 | . . . 1 . . Utility 20 | . 3 1 11 . 5 Device 2 | . 1 . . . 1 Storage 3 | . 1 1 . . 1 Processor 1 | . . . 1 . . Hackware 2 | . . . 2 . . Protection 12 | . 1 . 8 . 3 Artifact . | . . . . . . Weapon 25 | . 4 . 9 3 9 Energy Gun 2 | . 1 . 1 . . Energy Cannon 2 | . . . 1 . 1 Ballistic Gun 6 | . . . 2 1 3 Ballistic Cannon 7 | . 2 . 4 . 1 Launcher 5 | . 1 . 1 1 2 Special Weapon . | . . . . . . Impact Weapon . | . . . . . . Slashing Weapon . | . . . . . . Piercing Weapon . | . . . . . . Special Melee Weapon 3 | . . . . 1 2 Unidentified Prototypes 4 | . . . 4 . . Parts Lost 14 | . . . 6 . 8 Power . | . . . . . . Propulsion 6 | . . . 3 . 3 Utility 7 | . . . 3 . 4 Weapon 1 | . . . . . 1 Highest Loss Streak 3 | . . . 2 . 3 To Critical Strikes 2 | . . . . . 2 Average Slot Usage (%) 94 | . 98 100 93 97 89 Engine 11 | . 14 14 10 11 9 Treads 15 | . 17 1 10 22 21 Wheel 8 | . 10 26 11 . . Storage 11 | . 14 14 11 11 8 Processor 4 | . . . 5 11 8 Hackware 2 | . . . 6 . . Protection 17 | . 10 14 21 22 18 Ballistic Gun 5 | . 1 . 4 8 10 Ballistic Cannon 12 | . 24 28 11 2 . Launcher 1 | . . . . 5 2 Special Melee Weapon 1 | . . . . 3 4 Naked Turns . | . . . . . . Heaviest Build 109 | 14 100 100 109 106 103 Greatest Support 46 | 40 40 32 46 44 44 Greatest Overweight (x) 10 | . 6 6 10 2 2 Average Overweight (x) 2 | . 4 3 2 2 1 Largest Inventory Capacity 40 | 8 25 25 25 25 40 Average Capacity 23 | 8 21 25 25 25 23 Most Carried 25 | 5 25 25 25 25 25 Average Carried 21 | 4 18 24 24 24 17 Final Capacity 40 | 8 25 25 25 25 40 Final Carried 25 | 5 24 25 25 25 13 Class Distribution -------------------- 82% | Mutant 13% | Scavenger-Mutant 4% | Hauler-Mutant Dominant Class ---------------- Mutant | -10/Materials Mutant | -10/Mines Mutant | -9/Materials Mutant | -9/Mines Mutant | -9/Exiles Resources | -11 -10 -10 -9 -9 -9 ----------- Run | Jun Mat Min Mat Min Exi Matter Collected 3170 | 223 767 402 1097 131 550 Remotely . | . . . . . . Salvage Created 2754 | 89 697 128 1613 131 96 Parts 178 | 3 46 6 110 12 1 Haulers Intercepted 7 | . 2 . 5 . . Recyclers Shooed 6 | . 3 . 3 . . Parts Field Recycled . | . . . . . . Retrieved Matter . | . . . . . . Parts Self-Destructed . | . . . . . . Prevented . | . . . . . . Kills | -11 -10 -10 -9 -9 -9 ------- Run | Jun Mat Min Mat Min Exi Combat Hostiles Destroyed 62 | . 19 4 31 3 5 Guns 11 | . 6 . 5 . . Cannons 36 | . 8 4 24 . . AOE 15 | . 5 . 2 3 5 Classes Destroyed 13 | 2 7 1 2 . 1 Worker 4 | . 2 1 . 1 . Builder 4 | . 2 . 1 1 . Tunneler 3 | 1 1 . . 1 . Hauler 7 | . 2 . 5 . . Recycler 9 | 1 2 1 5 . . Operator 4 | . 3 . 1 . . Turret 1 | . . . . . 1 Watcher 7 | . 3 . 4 . . Swarmer 16 | . 6 2 5 3 . Grunt 29 | . 13 . 16 . . Duelist 2 | . . . 2 . . Sentry 8 | . . . 8 . . Assembled 6 | . . 2 . . 4 Best Kill Streak 8 | 2 8 2 4 3 3 Combat Bots Only 6 | . 6 1 4 3 3 Max Kills in Single Turn 3 | 1 3 1 2 3 1 Gunslinging . | . . . . . . Exploded 3 | . 2 . 2 3 1 Melee . | . . . . . . Uniques/NPCs Destroyed 2 | . . . . 1 1 YI-UF0 (-9/Mines) 8R-AWN (-9/Exiles) Combat | -11 -10 -10 -9 -9 -9 -------- Run | Jun Mat Min Mat Min Exi Damage Taken 3740 | . 648 96 1253 33 1710 Core 455 | . 166 22 98 11 158 Absorbed by Shields 70 | . . . . . 70 Regen/Repaired (Parts) 186 | . . . 186 . . Core Remaining (%) 62 | 100 . 24 . . . Volleys Fired 312 | 3 93 12 112 12 80 Largest 2 | 2 2 2 2 1 2 Hottest 250 | 70 78 78 78 60 250 Shots Fired 503 | 6 166 24 202 12 93 Gun 166 | 6 47 . 79 6 28 Cannon 274 | . 104 24 120 5 21 Launcher 63 | . 15 . 3 1 44 Special . | . . . . . . Kinetic 397 | 3 130 24 199 11 30 Thermal 43 | 3 21 . . . 19 Explosive 63 | . 15 . 3 1 44 Electromagnetic . | . . . . . . Robot Hit Streak 16 | 4 7 4 11 8 16 Robot Miss Streak 5 | . 5 2 3 1 3 Penetration Max . | . . . . . . Secondary Targets . | . . . . . . Shots Hit Robots 290 | 4 80 12 133 17 44 Core Hits 148 | 2 41 7 55 7 36 Critical Kills . | . . . . . . Critical Parts Destroyed . | . . . . . . Critical Strikes 11 | . 6 . 5 . . Burn 2 | . 2 . . . . Destroy 1 | . . . 1 . . Blast 8 | . 4 . 4 . . Melee Attacks 11 | . . . . 7 4 Impact . | . . . . . . Slashing . | . . . . . . Piercing . | . . . . . . Sneak Attacks 11 | . . . . 7 4 Combat Hostiles . | . . . . . . Follow-up Attacks . | . . . . . . Damage Inflicted 8321 | 55 2063 302 3452 435 2014 Guns 1544 | 55 308 . 777 92 312 Cannons 4521 | . 1106 302 2404 156 553 Explosions 2256 | . 649 . 271 187 1149 Melee . | . . . . . . Ramming . | . . . . . . Kinetic 5465 | 30 1288 302 3181 248 416 Thermal 1153 | 25 126 . . . 1002 Explosive 1703 | . 649 . 271 187 596 Electromagnetic . | . . . . . . Impact . | . . . . . . Slashing . | . . . . . . Piercing . | . . . . . . Highest Corruption 1 | . 1 1 . . . Average Corruption 1 | . 1 1 . . . Corruption Purged . | . . . . . . Corruption Blocked . | . . . . . . Effects 18 | . 13 5 . . . Message Errors 7 | . 6 1 . . . Matter Fused 3 | . 1 2 . . . Heat Flow Errors 5 | . 3 2 . . . Parts Fused 1 | . 1 . . . . Data Loss (major) 1 | . 1 . . . . Alerts 1 | . 1 . . . . Overload Shots . | . . . . . . Overflow Damage 266 | . 103 . 102 61 . Projectiles 165 | . 82 . 22 61 . Explosions 101 | . 21 . 80 . . Melee . | . . . . . . Knockbacks 38 | . 15 4 16 1 2 Impact . | . . . . . . Kinetic 36 | . 15 4 14 1 2 Secondary 2 | . . . 2 . . Self-Inflicted Damage 201 | . 85 . 24 33 59 Shots 17 | . 3 . 1 1 12 Rammed . | . . . . . . Targets Rammed . | . . . . . . Kicked . | . . . . . . Crushed . | . . . . . . Highest Temperature 444 | 18 229 274 116 69 444 Average Temperature 57 | 9 47 84 27 31 122 Received Heat Transfer 618 | . 234 . 384 . . Siege Activations . | . . . . . . Robots Corrupted . | . . . . . . Combat Hostiles . | . . . . . . Parts Fried . | . . . . . . Impact Corruptions . | . . . . . . Robots Melted . | . . . . . . Combat Hostiles . | . . . . . . Parts Melted 1 | 1 . . . . . Heat Transferred 1872 | 74 518 . . . 1280 Parts Sabotaged . | . . . . . . Parts Stolen . | . . . . . . Parts Stripped . | . . . . . . Power Chain Reactions . | . . . . . . Missiles Intercepted . | . . . . . . Alert | -11 -10 -10 -9 -9 -9 ------- Run | Jun Mat Min Mat Min Exi Peak Influence 694 | 10 489 120 694 258 . Initial 246 | . 6 70 . 246 . Average 274 | 5 187 61 458 135 . Maximum Alert Level 2 | . 2 . 2 1 . Low Security (%) 45 | 100 54 100 13 67 . Level 1 27 | . 40 . 23 32 . Level 2 27 | . 4 . 63 . . Level 3 . | . . . . . . Level 4 . | . . . . . . Level 5 . | . . . . . . High Security . | . . . . . . Max Security . | . . . . . . Squads Dispatched 11 | . 4 . 7 . . Investigation 7 | . 2 . 5 . . Extermination . | . . . . . . Reinforcement 3 | . 2 . 1 . . Assault 1 | . . . 1 . . Garrison . | . . . . . . Intercept . | . . . . . . Searches Triggered . | . . . . . . Construction Impeded . | . . . . . . Haulers Reinforced . | . . . . . . Active Scanning Responses . | . . . . . . Cargo Convoy Interrupts . | . . . . . . Stealth | -11 -10 -10 -9 -9 -9 --------- Run | Jun Mat Min Mat Min Exi Distress Signals 4 | . 1 . 3 . . Communications Jammed . | . . . . . . Distress Signals . | . . . . . . Times Spotted 99 | . 26 7 49 3 14 Peak Tracking Total 10 | . 7 3 6 3 10 Tactical Retreats 11 | . . . 3 . 8 Traps | -11 -10 -10 -9 -9 -9 ------- Run | Jun Mat Min Mat Min Exi Traps Triggered 4 | . 2 . 1 . 1 Indirectly . | . . . . . . Trap Hack Attempts . | . . . . . . Triggered . | . . . . . . Disarmed . | . . . . . . Reprogrammed . | . . . . . . Reused . | . . . . . . Traps Extracted . | . . . . . . Installed 1 | . . . . . 1 Triggered . | . . . . . . Most Traps Carried 2 | . . 2 2 2 2 Exploded 3 | . . . . . 3 Machines | -11 -10 -10 -9 -9 -9 ---------- Run | Jun Mat Min Mat Min Exi Machines Disabled 21 | . 6 . 6 3 6 Max in Single Turn 3 | . 1 . 1 3 2 Machines Repaired . | . . . . . . Machines Sabotaged . | . . . . . . Overloaded Fab Kills . | . . . . . . Hacking | -11 -10 -10 -9 -9 -9 --------- Run | Jun Mat Min Mat Min Exi Machines Accessed 24 | . 7 . 15 1 1 Terminals 16 | . 5 . 10 1 . Fabricators . | . . . . . . Repair Stations 2 | . . . 2 . . Recycling Units 4 | . 2 . 2 . . Scanalyzers 1 | . . . 1 . . Garrison Access . | . . . . . . Total Hacks 81 | . 28 . 51 1 1 Successful 47 | . 12 . 33 1 1 Failed 32 | . 15 . 17 . . Catastrophic 1 | . . . 1 . . Database Lockouts 2 | . 1 . 1 . . Manual 34 | . 15 . 18 . 1 Terminals 53 | . 20 . 32 1 . Fabricators . | . . . . . . Repair Stations 9 | . . . 9 . . Recycling Units 15 | . 8 . 7 . . Scanalyzers 3 | . . . 3 . . Garrison Access . | . . . . . . Terminal Hacks 18 | . 3 . 13 1 1 Robot Analysis 7 | . 2 . 5 . . Prototype ID Bank 2 | . 1 . 1 . . Branch Access Points 1 | . . . 1 . . Terminal Index 1 | . . . 1 . . Unreport Threat 1 | . . . 1 . . Hauler Manifests 1 | . . . 1 . . Registered Components 1 | . . . 1 . . Zone Layout 3 | . . . 2 1 . EX-Prototype ID Bank 1 | . . . . . 1 Fabricator Hacks . | . . . . . . Repair Station Hacks 7 | . . . 7 . . Scan Component 4 | . . . 4 . . Repair 3 | . . . 3 . . Recycling Unit Hacks 7 | . 4 . 3 . . Report Inventory 4 | . 2 . 2 . . Retrieve Matter 1 | . 1 . . . . Retrieve Components 2 | . 1 . 1 . . Scanalyzer 2 | . . . 2 . . Insert Component 1 | . . . 1 . . Analyze 1 | . . . 1 . . Garrison Access Hacks . | . . . . . . Unauthorized Hacks 13 | . 5 . 8 . . Terminals 7 | . 3 . 4 . . Botnet 7 | . 3 . 4 . . Fabricators . | . . . . . . Repair Stations . | . . . . . . Recycling Units 5 | . 2 . 3 . . Reject 1 | . . . 1 . . Mask 2 | . 1 . 1 . . Tunnel 2 | . 1 . 1 . . Scanalyzers 1 | . . . 1 . . Extract 1 | . . . 1 . . Garrison Access . | . . . . . . Data Cores Recovered 2 | . 1 . 1 . . Used 1 | . . . 1 . . Hacking Detections 18 | . 7 . 11 . . Full Trace Events 7 | . 3 . 4 . . Feedback Events 1 | . 1 . . . . Corruption 1 | . 1 . . . . Feedback Blocked . | . . . . . . Robot Schematics Acquired . | . . . . . . Robots Built . | . . . . . . Authchips . | . . . . . . Time . | . . . . . . Total Robot Build Rating . | . . . . . . Part Schematics Acquired 6 | . . . 6 . . Parts Built . | . . . . . . Authchips . | . . . . . . Time . | . . . . . . Total Part Build Rating . | . . . . . . Parts Repaired 3 | . . . 3 . . Time 117 | . . . 117 . . Parts Recycled . | . . . . . . Recycled Matter . | . . . . . . Retrieved Matter . | . . . . . . Retrieved Components 20 | . 10 . 10 . . Parts Scanalyzed 1 | . . . 1 . . Part Schematics Acquired 1 | . . . 1 . . Parts Damaged . | . . . . . . Bothacking | -11 -10 -10 -9 -9 -9 ------------ Run | Jun Mat Min Mat Min Exi Used RIF Installer . | . . . . . . Robots Hacked 9 | . . . . 5 4 Non-combat 7 | . . . . 4 3 Combat 2 | . . . . 1 1 Robot Hacks Applied 9 | . . . . 5 4 parse_system 6 | . . . . 2 4 no_distress 3 | . . . . 3 . Relay Couplers Released . | . . . . . . Fabnet Peak Effective % . | . . . . . . Robots Rewired . | . . . . . . Allies Hacked . | . . . . . . Hacks Repelled . | . . . . . . Allies | -11 -10 -10 -9 -9 -9 -------- Run | Jun Mat Min Mat Min Exi Total Allies 4 | . . 4 . . . Largest Group 3 | . . 3 3 . . Highest-Rated Group 55 | . . 55 55 . . Highest-Rated Ally 31 | . . 31 31 . . Total Orders . | . . . . . . Ally Attacks 57 | . . 13 44 . . Total Damage 658 | . . 144 514 . . Kills 15 | . . 4 11 . . Allies Corrupted . | . . . . . . Allies Melted . | . . . . . . Intel | -11 -10 -10 -9 -9 -9 ------- Run | Jun Mat Min Mat Min Exi Robot Analysis Total 7 | . 2 . 5 . . Derelict Logs Recovered 3 | . . 2 . 1 . Drone Launches . | . . . . . . Drone Recoveries . | . . . . . . Exploration | -11 -10 -10 -9 -9 -9 ------------- Run | Jun Mat Min Mat Min Exi Turns Passed 9700 | 25 2343 903 3142 1246 2041 Spaces Moved 3617 | 7 944 537 1092 355 682 Core . | . . . . . . Treads 1677 | 7 231 . 402 355 682 Legs . | . . . . . . Wheels 1940 | . 713 537 690 . . Hover . | . . . . . . Flight . | . . . . . . Fastest Speed 130 | 160 130 145 135 305 145 Average Speed 210 | 160 189 148 210 305 238 Slowest Speed 320 | 160 320 190 320 305 305 Overloaded Moves . | . . . . . . Propulsion Burnouts . | . . . . . . Robots Hopped . | . . . . . . Cave-ins Triggered . | . . . . . . Exploration Rate (%) 75 | 3 98 98 98 85 69 Regions Visited 5 Branch Regions 3 Pre-discovered Areas 5 | . 1 3 1 . . Known Exits Taken 1 | . . . 1 . . Unknown Exits Taken 4 | 1 1 1 . 1 . Scrap Searched 5 | . . 3 . 2 . Spaces Dug . | . . . . . . Terrain Destroyed 152 | . 42 . 22 8 80 Melee . | . . . . . . Projectile 22 | . 4 . 7 2 9 AOE 130 | . 38 . 15 6 71 Terrain Rammed . | . . . . . . Walls Destroyed . | . . . . . . Machines Disabled . | . . . . . . Actions | -11 -10 -10 -9 -9 -9 --------- Run | Jun Mat Min Mat Min Exi Total 5223 | 15 1332 620 1738 503 1015 Wait 1004 | 1 232 54 430 121 166 Move 3612 | 6 943 536 1091 354 682 Hop . | . . . . . . Pick Up 99 | 1 32 7 32 3 24 Fast Attach 16 | . . 1 10 . 5 Attach 23 | . 2 . 14 2 5 Detach 5 | . 1 . 3 . 1 Swap 38 | 2 15 2 9 1 9 Drop 102 | 2 14 8 37 3 38 Fire 312 | 3 93 12 112 12 80 Melee 11 | . . . . 7 4 Ram . | . . . . . . Kick . | . . . . . . Crush . | . . . . . . Escape Stasis . | . . . . . . Rewire . | . . . . . . Trap 1 | . . . . . 1 Miscellaneous . | . . . . . . Route ------- -11/Junkyard -10/Materials (discovered 4 exits: *Mat x3 / [*Min]) -10/Mines (discovered 2 exits: *Mat x2) -9/Materials (discovered 5 exits: [*Mat x3] / *Min x2) -9/Mines (discovered 3 exits: [*Mat x2] / *Exi) -9/Exiles History --------- Turn | Location | Event 8 | -11/Junkyard | Discovered new exit (range 3) 26 | -11/Junkyard | Entered Materials 85 | -10/Materials | Discovered new exit (range 12) 308 | -10/Materials | Build established: Mutant 391 | -10/Materials | Core integrity fell below 50% 444 | -10/Materials | Discovered new exit (range 15) 1450 | -10/Materials | Discovered new exit (range 16) 2132 | -10/Materials | Discovered new exit (range 16) 2267 | -10/Materials | Central database locked down 2369 | -10/Materials | Entered Mines 2576 | -10/Mines | Assembled infested the area 2614 | -10/Mines | Found a hidden stash of uninstalled traps 2693 | -10/Mines | Learned location of Storage (-8) 2721 | -10/Mines | Assisted by bots powering up and referring to "LRC-V3" 2787 | -10/Mines | Discovered new exit (range 10) 3111 | -10/Mines | Escorted by a lone wolf Derelict 3193 | -10/Mines | Discovered new exit (range 9) 3272 | -10/Mines | Entered Materials 3272 | -9/Materials | Accompanied by 3 allies 3272 | -9/Materials | Evolved 2 slots: Utility x2 3395 | -9/Materials | Discovered new exit (range 12) 3522 | -9/Materials | Repaired Broken Lgt. Deuterium Engine 3557 | -9/Materials | Discovered new exit (range 3) 3706 | -9/Materials | Repaired Med. Armor Plating 3739 | -9/Materials | Repaired Mni. Grenade Launcher 3891 | -9/Materials | Build established: Scavenger-Mutant 4172 | -9/Materials | Discovered new exit (range 5) 4310 | -9/Materials | Discovered new exit (range 6) 4872 | -9/Materials | First assault squad dispatched 4894 | -9/Materials | Identified exit to Mines 5184 | -9/Materials | Build established: Mutant 5251 | -9/Materials | Discovered new exit (range 10) 5575 | -9/Materials | Central database locked down 6414 | -9/Materials | Entered Mines 6498 | -9/Mines | Discovered new exit (range 3) 6664 | -9/Mines | YI-UF0 nonchalantly dropped a Grenade Launcher on the ground 6678 | -9/Mines | Destroyed YI-UF0 7033 | -9/Mines | Met a Derelict testing a Signal Generator 7071 | -9/Mines | Found Signal Generator 7602 | -9/Mines | Discovered new exit (range 15) 7648 | -9/Mines | Deemed a non-threat by the Exiles lab entrance 7648 | -9/Mines | Discovered new exit (range 5) 7660 | -9/Mines | Entered Exiles 7743 | -9/Exiles | Met 8R-AWN 7872 | -9/Exiles | Met EX-HEX 7959 | -9/Exiles | Met EX-BIN 8125 | -9/Exiles | Aligned with FarCom system 8128 | -9/Exiles | Given EX-Vault access code 8198 | -9/Exiles | Opened EX-Vault 8214 | -9/Exiles | Found Firepult 8225 | -9/Exiles | Found Lightpack 2.0 8231 | -9/Exiles | Found Supersonic Drone Bay 8299 | -9/Exiles | Warned to stay clear of 0b10 Research branches 8385 | -9/Exiles | Met EX-DEC 8785 | -9/Exiles | Warned about trapping Exiles lab 9030 | -9/Exiles | Attacked by the Exiles 9243 | -9/Exiles | Core integrity fell below 50% 9268 | -9/Exiles | Destroyed 8R-AWN 9591 | -9/Exiles | Build established: Hauler-Mutant 9599 | -9/Exiles | Lost 3 parts (2n1u) 9701 | -9/Exiles | Self-destructed Last Messages --------------- 09327_ Acquired Huge Storage Unit. 09371_ as-31265 destroyed. 09410_ Dropped Firepult. 09411_ Acquired Firepult. 09412_ Rnf. Fission Core blasted off. 09417_ Acquired 6 matter. 09446_ Dropped Hcp. Matter Pod. 09447_ Extracted 200 matter. 09483_ Acquired Hcp. Matter Pod. 09484_ Acquired 2 matter. 09486_ Acquired 9 matter. 09515_ Extracted 50 matter. 09568_ Acquired 7 matter. 09568_ Adv. Treads destroyed. 09568_ Cooling System destroyed. 09568_ Critical hit (Blast). 09632_ Acquired 10 matter. 09635_ Acquired 7 matter. 09644_ Acquired 9 matter. 09645_ Acquired 1 matter. Map ----- +----------------------------------------------------+ | "#???### ###?######"" #???????? | | # #####X# #"###""""""" ##??????? | | # """""" " "" ##???### | | ## # " """ " #####"" | | ?#### " " " | | ????## ## / | | ?????###### | | ??????????## | | ???????????## | | ????????????## | | ????????????## """""" | | ???????????## ######""" | | ???????????# ""##????#####""" | | ???????????# """##?????????##""" | | ???????????# """##???????????#"""" | | ???????????# ""#????????????#"" | | ???????????# ########??####"""" | | ???????????#" ##aaa####""" | | ???????????#"" """" | | ???????????##"" | | ????????????#"" | | ????????????## | | ?????????????#" " "" | | ?????????????#" ""## ##""" " " | | ?????????????#" ""#### #?####""" " | | ?????????????#" @ """"##??# #?????????? | | ?????????????#""" """#??## ####??????? | | ?????????????## ""##??#! "!#??????? | | ??????????????#"" """##???#" !#??????? | | ??????????????##""" ##????#" "#??????? | | ???????????????##"""" ##?????#!!""!"#??????? | | ????????????????### #??????########??????? | | ??????????????????##### ##????????????????????? | | ??????????????????????## #?????????????????????? | | ???????????????????????# #?????????????????????? | | ???????????????????????# #?????????????????????? | | ???????????????????????# #?????????????????????? | | ???????????????????????# #?????????????????????? | | ???????????????????????# #?????????????????????? | | ???????????????????????# #?????????????????????? | | ???????????????????????# #?????????????????????? | | ???????????????????????? #?????????????????????? | | ???????????????????????? #?????????????????????? | | ???????????????????????? #?????????????????????? | | ???????????????????????? ??????????????????????? | | ?????????????????????????????????????????????????? | | ?????????????????????????????????????????????????? | | ?????????????????????????????????????????????????? | | ?????????????????????????????????????????????????? | | ?????????????????????????????????????????????????? | +----------------------------------------------------+ Best States ------------- Heat Dissipation 50 Energy Generation 19 Energy Capacity 310 Matter Stores 300 Matter Capacity 300 Sight Range 16 Terrain Scan Density 10 Armor Coverage 450 Evasion (%) 40 Targeting Accuracy 5 Recoil Reduction 2 Offensive Hacking 20 Item Schematics ----------------- Huge Storage Unit | -9/Materials | Scanalyzed Lgt. Assault Rifle | -9/Materials | Extracted Imp. Hover Unit | -9/Materials | Extracted Imp. Ion Engine | -9/Materials | Extracted Salvage Targeting Computer | -9/Materials | Extracted Hammer | -9/Materials | Extracted Robot Schematics ------------------ None Fabricated ------------ Nothing Alien Tech Used ----------------- None Achievements -------------- None Challenges ------------ None Game ------ Seed MetafieldAlertFlamer Manual? 0 Play Time 01:51:11 Cumulative 489.6 hours Start 2023.03.17 @ 11:13:46 End 2023.03.18 @ 13:26:04 Sessions 1 Manual Loads 0 Difficulty Rogue Special Mode None Game No. 526 Rogue 526 Adventurer 0 Explorer 0 Win Type - Total 1 Types 1/0/0/0/0/0/0/0/0 Lore% 61 Gallery% 82 Achievement% 65 Wizard Run 0 Options --------- ASCII 0 Keyboard 0 Movement Mouse Keybinds 0 Fullscreen 2 Font 24/Smallcaps Map View 76x50 Tactical HUD 1 Map Filters NONE Filters NONE Steam 1 RUN: 4181680e-6042-4948-afbd-f837acf8e012